[Event "*** Titled Tuesday Blitz AM"]
[Site "Chess.com"]
[Date "2020.01.07"]
[Round "7"]
[White "Andrii_Prydun"]
[Black "XxPetroffsxX"]
[Result "1-0"]
[WhiteElo "2350"]
[BlackElo "1982"]
[TimeControl "180+2"]
[EndTime "10:33:45 PST"]
[Termination "Andrii_Prydun won by resignation"]

1. d4 {[%clk 0:03:01.9]} 1... d5 {[%clk 0:03:00.3]} 2. c4 {[%clk 0:03:01.3]}
2... e5 {[%clk 0:03:01.3]} 3. dxe5 {[%clk 0:03:00]} 3... d4 {[%clk 0:03:02.1]}
4. a3 {[%clk 0:02:58.3]} 4... a5 {[%clk 0:03:00.7]} 5. Nf3 {[%clk 0:02:58.4]}
5... Nc6 {[%clk 0:03:01]} 6. e3 {[%clk 0:02:58.2]} 6... dxe3 {[%clk 0:02:59]} 7.
Qxd8+ {[%clk 0:02:58.1]} 7... Nxd8 {[%clk 0:03:00]} 8. Bxe3 {[%clk 0:02:58.9]}
8... Bg4 {[%clk 0:03:00.4]} 9. Nd4 {[%clk 0:02:57.3]} 9... c6 {[%clk 0:02:54.9]}
10. f4 {[%clk 0:02:54.9]} 10... Ne6 {[%clk 0:02:55.3]} 11. Nxe6 {[%clk
0:02:48.6]} 11... Bxe6 {[%clk 0:02:54.9]} 12. Nc3 {[%clk 0:02:50]} 12... Ne7
{[%clk 0:02:52.9]} 13. Bd3 {[%clk 0:02:47.8]} 13... Nf5 {[%clk 0:02:47.3]} 14.
Bf2 {[%clk 0:02:48.1]} 14... h5 {[%clk 0:02:44.4]} 15. O-O-O {[%clk 0:02:44.8]}
15... Be7 {[%clk 0:02:42.6]} 16. Rhe1 {[%clk 0:02:43.7]} 16... O-O {[%clk
0:02:24.2]} 17. Ne4 {[%clk 0:02:45]} 17... b5 {[%clk 0:02:23.5]} 18. c5 {[%clk
0:02:40.4]} 18... a4 {[%clk 0:02:16.2]} 19. Nd6 {[%clk 0:02:40.2]} 19... Nxd6
{[%clk 0:02:07.7]} 20. cxd6 {[%clk 0:02:40]} 20... Bd8 {[%clk 0:02:07.6]} 21.
Be4 {[%clk 0:02:39.6]} 21... Ra6 {[%clk 0:02:03.4]} 22. f5 {[%clk 0:02:34.1]}
22... Bc4 {[%clk 0:02:01]} 23. e6 {[%clk 0:02:30.1]} 23... Bg5+ {[%clk
0:02:01.1]} 24. Be3 {[%clk 0:02:29.2]} 24... Bxe3+ {[%clk 0:01:58]} 25. Rxe3
{[%clk 0:02:31.1]} 25... fxe6 {[%clk 0:01:59.2]} 26. fxe6 {[%clk 0:02:33]} 26...
Bxe6 {[%clk 0:01:53.4]} 27. Bg6 {[%clk 0:02:26]} 27... Bd7 {[%clk 0:01:50.4]}
28. Re7 {[%clk 0:02:25.9]} 28... Ra7 {[%clk 0:01:46.5]} 29. Rde1 {[%clk
0:02:25.2]} 29... Rf6 {[%clk 0:01:38]} 30. Bxh5 {[%clk 0:01:34.5]} 30... Rxd6
{[%clk 0:01:35.3]} 31. Bg4 {[%clk 0:01:34.7]} 31... Rc7 {[%clk 0:01:20.6]} 32.
Be6+ {[%clk 0:01:30.2]} 32... Bxe6 {[%clk 0:01:14.9]} 33. Rxc7 {[%clk
0:01:30.3]} 33... Bd5 {[%clk 0:01:14.6]} 34. Ree7 {[%clk 0:01:23.3]} 34... Rg6
{[%clk 0:01:11.5]} 35. g3 {[%clk 0:01:23.9]} 35... Kh7 {[%clk 0:01:05]} 36. Kd2
{[%clk 0:01:24.2]} 36... Kh6 {[%clk 0:01:05.9]} 37. Ke3 {[%clk 0:01:24.5]} 37...
Rg4 {[%clk 0:01:06.4]} 38. Rcd7 {[%clk 0:01:21.6]} 38... Rg6 {[%clk 0:00:58.9]}
39. Kf4 {[%clk 0:01:20.9]} 39... Rf6+ {[%clk 0:00:57.3]} 40. Ke5 {[%clk
0:01:20.8]} 40... Rg6 {[%clk 0:00:54.1]} 41. Rd6 {[%clk 0:01:21.3]} 41... Rxd6
{[%clk 0:00:48.5]} 42. Kxd6 {[%clk 0:01:20.8]} 42... g5 {[%clk 0:00:47.8]} 43.
Re5 {[%clk 0:01:18.2]} 43... Bf3 {[%clk 0:00:42.1]} 44. h4 {[%clk 0:01:18.2]}
44... gxh4 {[%clk 0:00:39.5]} 45. gxh4 {[%clk 0:01:20.1]} 45... Kg6 {[%clk
0:00:39.6]} 46. Rc5 {[%clk 0:01:21.6]} 46... Be2 {[%clk 0:00:32]} 47. Kxc6
{[%clk 0:01:16]} 47... Kh6 {[%clk 0:00:31.9]} 48. Rxb5 {[%clk 0:01:17]} 1-0

[Event "*** Titled Tuesday Blitz AM"]
[Site "Chess.com"]
[Date "2020.01.07"]
[Round "7"]
[White "Korchmar_Vasiliy"]
[Black "Sven_Tica"]
[Result "1-0"]
[WhiteElo "2770"]
[BlackElo "2651"]
[TimeControl "180+2"]
[EndTime "10:33:46 PST"]
[Termination "Korchmar_Vasiliy won by checkmate"]

1. d4 {[%clk 0:03:01.9]} 1... d5 {[%clk 0:03:00]} 2. c4 {[%clk 0:03:02.9]} 2...
e6 {[%clk 0:03:00.8]} 3. Nf3 {[%clk 0:03:03.8]} 3... Nf6 {[%clk 0:03:02.1]} 4.
g3 {[%clk 0:03:04.9]} 4... Be7 {[%clk 0:03:02.7]} 5. Bg2 {[%clk 0:03:06]} 5...
O-O {[%clk 0:03:04.4]} 6. O-O {[%clk 0:03:06.9]} 6... dxc4 {[%clk 0:03:06]} 7.
Ne5 {[%clk 0:03:06.8]} 7... c5 {[%clk 0:03:05]} 8. dxc5 {[%clk 0:03:03.7]} 8...
Qc7 {[%clk 0:03:06.1]} 9. Nxc4 {[%clk 0:03:03.4]} 9... Rd8 {[%clk 0:03:07.4]}
10. Nbd2 {[%clk 0:03:04.2]} 10... Nc6 {[%clk 0:03:03]} 11. a3 {[%clk 0:02:56.3]}
11... Bxc5 {[%clk 0:03:01.8]} 12. b4 {[%clk 0:02:57.1]} 12... Bd4 {[%clk
0:02:59.6]} 13. Rb1 {[%clk 0:02:57.9]} 13... a6 {[%clk 0:02:49.4]} 14. e3 {[%clk
0:02:58]} 14... Ba7 {[%clk 0:02:50.4]} 15. Bb2 {[%clk 0:02:56.7]} 15... Nd5
{[%clk 0:02:49.3]} 16. Rc1 {[%clk 0:02:53.1]} 16... Qe7 {[%clk 0:02:39.2]} 17.
Qh5 {[%clk 0:02:46.6]} 17... b5 {[%clk 0:02:30.7]} 18. Ne5 {[%clk 0:02:16.4]}
18... Nxe5 {[%clk 0:02:30.8]} 19. Bxe5 {[%clk 0:02:18.3]} 19... Bb7 {[%clk
0:02:28]} 20. Nb3 {[%clk 0:02:15.8]} 20... Rac8 {[%clk 0:02:23.5]} 21. Qg4
{[%clk 0:02:11.8]} 21... f5 {[%clk 0:02:13]} 22. Qe2 {[%clk 0:02:07.4]} 22...
Bb6 {[%clk 0:02:07.3]} 23. Bd4 {[%clk 0:02:06.2]} 23... Bxd4 {[%clk 0:02:03]}
24. exd4 {[%clk 0:02:08.1]} 24... Nc3 {[%clk 0:01:56.4]} 25. Qe3 {[%clk
0:02:09.3]} 25... Bxg2 {[%clk 0:01:55.1]} 26. Kxg2 {[%clk 0:02:11.2]} 26... Nd5
{[%clk 0:01:47.6]} 27. Qe5 {[%clk 0:02:08.9]} 27... Kf7 {[%clk 0:01:33.1]} 28.
Nc5 {[%clk 0:02:09.3]} 28... Rc6 {[%clk 0:01:33.1]} 29. Rfe1 {[%clk 0:02:09.7]}
29... Re8 {[%clk 0:01:28.1]} 30. Rc2 {[%clk 0:02:10.6]} 30... Nb6 {[%clk
0:01:24.2]} 31. Rce2 {[%clk 0:02:05.6]} 31... Nc4 {[%clk 0:01:25]} 32. Qf4
{[%clk 0:02:05.7]} 32... Qf6 {[%clk 0:01:25.3]} 33. g4 {[%clk 0:00:57.8]} 33...
g5 {[%clk 0:01:22.3]} 34. Qf3 {[%clk 0:00:47.1]} 34... Rd6 {[%clk 0:01:20.1]}
35. gxf5 {[%clk 0:00:45.1]} 35... Rxd4 {[%clk 0:01:18.8]} 36. fxe6+ {[%clk
0:00:39.5]} 36... Kg7 {[%clk 0:01:19.2]} 37. Qxf6+ {[%clk 0:00:41.4]} 37... Kxf6
{[%clk 0:01:20.3]} 38. e7 {[%clk 0:00:43.3]} 38... Nd2 {[%clk 0:01:12.1]} 39.
Re6+ {[%clk 0:00:43.8]} 39... Kf5 {[%clk 0:01:09.4]} 40. Nb7 {[%clk 0:00:35.3]}
40... Rg4+ {[%clk 0:01:08.7]} 41. Kh1 {[%clk 0:00:35]} 41... Nf3 {[%clk
0:00:50.4]} 42. Nd6+ {[%clk 0:00:34.3]} 42... Kf4 {[%clk 0:00:52]} 43. R1e4#
{[%clk 0:00:35.1]} 1-0

[Event "*** Titled Tuesday Blitz AM"]
[Site "Chess.com"]
[Date "2020.01.07"]
[Round "7"]
[White "JSMastropiero"]
[Black "GremioPrudente"]
[Result "0-1"]
[WhiteElo "2382"]
[BlackElo "2278"]
[TimeControl "180+2"]
[EndTime "10:33:47 PST"]
[Termination "GremioPrudente won by resignation"]

1. e4 {[%clk 0:02:56.7]} 1... e6 {[%clk 0:03:00.6]} 2. d3 {[%clk 0:02:55.1]}
2... d5 {[%clk 0:03:02]} 3. Nd2 {[%clk 0:02:55.4]} 3... Nf6 {[%clk 0:03:02]} 4.
Ngf3 {[%clk 0:02:55.8]} 4... c5 {[%clk 0:03:00.3]} 5. g3 {[%clk 0:02:55.5]} 5...
Nc6 {[%clk 0:03:01.7]} 6. Bg2 {[%clk 0:02:56.3]} 6... Be7 {[%clk 0:03:03.3]} 7.
O-O {[%clk 0:02:57.3]} 7... O-O {[%clk 0:03:04.8]} 8. Re1 {[%clk 0:02:58.1]}
8... b5 {[%clk 0:02:39.4]} 9. e5 {[%clk 0:02:57.8]} 9... Nd7 {[%clk 0:02:40]}
10. Nf1 {[%clk 0:02:59.2]} 10... a5 {[%clk 0:02:37.1]} 11. h4 {[%clk 0:02:56.9]}
11... b4 {[%clk 0:02:38.4]} 12. Bf4 {[%clk 0:02:57.3]} 12... Ba6 {[%clk
0:02:25.9]} 13. h5 {[%clk 0:02:53.5]} 13... h6 {[%clk 0:02:10.3]} 14. Ne3 {[%clk
0:02:49.1]} 14... Re8 {[%clk 0:02:00.9]} 15. c4 {[%clk 0:02:27.2]} 15... bxc3
{[%clk 0:01:52.5]} 16. bxc3 {[%clk 0:02:27.4]} 16... Rb8 {[%clk 0:01:54]} 17.
Qd2 {[%clk 0:01:46.4]} 17... d4 {[%clk 0:01:45.6]} 18. cxd4 {[%clk 0:01:37.9]}
18... cxd4 {[%clk 0:01:38.9]} 19. Ng4 {[%clk 0:01:38.3]} 19... Bb4 {[%clk
0:01:33.6]} 20. Qe2 {[%clk 0:01:23.4]} 20... Bxe1 {[%clk 0:01:34.5]} 21. Rxe1
{[%clk 0:01:24.6]} 21... Nb4 {[%clk 0:01:28.7]} 22. Nxd4 {[%clk 0:01:13.7]}
22... Nxd3 {[%clk 0:01:29.7]} 23. Bxh6 {[%clk 0:00:41.9]} 23... Nxe1 {[%clk
0:01:20]} 24. Qxe1 {[%clk 0:00:39.8]} 24... gxh6 {[%clk 0:01:20.4]} 25. Nxh6+
{[%clk 0:00:38.3]} 25... Kg7 {[%clk 0:01:18.4]} 26. Ndf5+ {[%clk 0:00:33]} 26...
exf5 {[%clk 0:01:09.9]} 27. Nxf5+ {[%clk 0:00:33.9]} 27... Kg8 {[%clk
0:01:11.4]} 28. Qe3 {[%clk 0:00:24.3]} 28... Rxe5 {[%clk 0:01:05.7]} 29. Nh6+
{[%clk 0:00:24.1]} 29... Kh7 {[%clk 0:01:00.3]} 30. Be4+ {[%clk 0:00:20.9]}
30... Rxe4 {[%clk 0:00:51.5]} 31. Qxe4+ {[%clk 0:00:21.7]} 31... Kxh6 {[%clk
0:00:52.8]} 32. Qf4+ {[%clk 0:00:22.3]} 32... Qg5 {[%clk 0:00:47.8]} 33. Qd6+
{[%clk 0:00:22.5]} 33... Nf6 {[%clk 0:00:42.2]} 34. Qxa6 {[%clk 0:00:22.9]}
34... Rb1+ {[%clk 0:00:34.6]} 0-1

[Event "*** Titled Tuesday Blitz AM"]
[Site "Chess.com"]
[Date "2020.01.07"]
[Round "7"]
[White "szefru"]
[Black "shanemelaughcm"]
[Result "1-0"]
[WhiteElo "2134"]
[BlackElo "2299"]
[TimeControl "180+2"]
[EndTime "10:33:52 PST"]
[Termination "szefru won by resignation"]

1. d4 {[%clk 0:03:01.9]} 1... e6 {[%clk 0:03:00.8]} 2. Bf4 {[%clk 0:03:01.3]}
2... f5 {[%clk 0:03:02.5]} 3. g3 {[%clk 0:02:53.4]} 3... Nf6 {[%clk 0:03:02.7]}
4. Bg2 {[%clk 0:02:54.3]} 4... Be7 {[%clk 0:03:04.4]} 5. Nf3 {[%clk 0:02:52.2]}
5... O-O {[%clk 0:03:06]} 6. c4 {[%clk 0:02:45.1]} 6... Ne4 {[%clk 0:03:02.6]}
7. Qc2 {[%clk 0:02:05.6]} 7... d6 {[%clk 0:03:01.9]} 8. Nc3 {[%clk 0:02:02.4]}
8... Nxc3 {[%clk 0:03:02.8]} 9. Qxc3 {[%clk 0:01:58.6]} 9... Bf6 {[%clk
0:03:04.2]} 10. h4 {[%clk 0:01:51.9]} 10... Nc6 {[%clk 0:03:04.3]} 11. Bg5
{[%clk 0:01:33.8]} 11... e5 {[%clk 0:02:58.5]} 12. Bxf6 {[%clk 0:01:31.4]} 12...
Qxf6 {[%clk 0:02:59]} 13. dxe5 {[%clk 0:01:17.1]} 13... dxe5 {[%clk 0:03:00.9]}
14. O-O {[%clk 0:01:16.4]} 14... f4 {[%clk 0:02:59.4]} 15. b4 {[%clk 0:01:11]}
15... e4 {[%clk 0:02:44]} 16. Qxf6 {[%clk 0:01:04.4]} 16... Rxf6 {[%clk
0:02:45.9]} 17. Ng5 {[%clk 0:01:04.6]} 17... f3 {[%clk 0:02:34.6]} 18. exf3
{[%clk 0:01:02]} 18... exf3 {[%clk 0:02:36.5]} 19. Bxf3 {[%clk 0:00:55.2]} 19...
Nxb4 {[%clk 0:02:37.6]} 20. Bg2 {[%clk 0:00:49.4]} 20... Nc6 {[%clk 0:02:37.1]}
21. Rab1 {[%clk 0:00:47.7]} 21... h6 {[%clk 0:02:32.2]} 22. Ne4 {[%clk
0:00:46.3]} 22... Rf8 {[%clk 0:02:30.6]} 23. Nc5 {[%clk 0:00:42.6]} 23... Na5
{[%clk 0:02:24.5]} 24. Nxb7 {[%clk 0:00:38.8]} 24... Bxb7 {[%clk 0:02:07.2]} 25.
Bxb7 {[%clk 0:00:37.9]} 25... Rab8 {[%clk 0:01:52.8]} 26. Bd5+ {[%clk
0:00:37.5]} 26... Kh7 {[%clk 0:01:54]} 27. Rfe1 {[%clk 0:00:35.4]} 27... Kg6
{[%clk 0:01:52.1]} 28. Rxb8 {[%clk 0:00:34.4]} 28... Rxb8 {[%clk 0:01:54]} 29.
Re7 {[%clk 0:00:34.7]} 29... c6 {[%clk 0:01:49.5]} 30. Re6+ {[%clk 0:00:35.8]}
30... Kf5 {[%clk 0:01:49.7]} 31. g4+ {[%clk 0:00:26.8]} 31... Kxg4 {[%clk
0:01:49.3]} 32. Bxc6 {[%clk 0:00:24.9]} 32... Nxc4 {[%clk 0:01:31.6]} 33. Re4+
{[%clk 0:00:22.8]} 33... Kf3 {[%clk 0:01:32]} 34. Re8+ {[%clk 0:00:22.3]} 34...
Kg4 {[%clk 0:01:31.8]} 35. Rxb8 {[%clk 0:00:23.5]} 35... Ne5 {[%clk 0:01:31.8]}
36. Be4 {[%clk 0:00:23.9]} 36... Kf4 {[%clk 0:01:32.6]} 37. f3 {[%clk
0:00:24.3]} 37... g5 {[%clk 0:01:33.2]} 38. hxg5 {[%clk 0:00:24.9]} 38... hxg5
{[%clk 0:01:35.1]} 39. Ba8 {[%clk 0:00:26.2]} 39... a5 {[%clk 0:01:35.7]} 40.
Rb5 {[%clk 0:00:26.8]} 40... Nc4 {[%clk 0:01:35]} 41. Rc5 {[%clk 0:00:27.2]}
41... Ne3 {[%clk 0:01:35.4]} 42. Rxa5 {[%clk 0:00:27.6]} 42... Nf5 {[%clk
0:01:35]} 43. Rxf5+ {[%clk 0:00:26.8]} 43... Kxf5 {[%clk 0:01:36.5]} 44. Kf2
{[%clk 0:00:28]} 44... Ke5 {[%clk 0:01:38.4]} 45. Kg3 {[%clk 0:00:29.4]} 45...
Kd4 {[%clk 0:01:40.1]} 46. Kg4 {[%clk 0:00:30.8]} 46... Kc4 {[%clk 0:01:42]} 47.
Kxg5 {[%clk 0:00:32.3]} 47... Kb4 {[%clk 0:01:43.9]} 48. f4 {[%clk 0:00:33.7]}
1-0

[Event "*** Titled Tuesday Blitz AM"]
[Site "Chess.com"]
[Date "2020.01.07"]
[Round "7"]
[White "MattyDPerrine"]
[Black "capatl"]
[Result "1/2-1/2"]
[WhiteElo "2373"]
[BlackElo "2625"]
[TimeControl "180+2"]
[EndTime "10:34:00 PST"]
[Termination "Game drawn - insufficient material"]

1. Nf3 {[%clk 0:03:01.9]} 1... c5 {[%clk 0:03:01.1]} 2. g3 {[%clk 0:03:02.3]}
2... b6 {[%clk 0:03:01.4]} 3. Bg2 {[%clk 0:03:03.1]} 3... Bb7 {[%clk 0:03:03.1]}
4. O-O {[%clk 0:03:04.7]} 4... Nf6 {[%clk 0:03:03.9]} 5. c4 {[%clk 0:03:05.9]}
5... e6 {[%clk 0:03:04.9]} 6. Nc3 {[%clk 0:03:06.7]} 6... Be7 {[%clk 0:03:03.3]}
7. Re1 {[%clk 0:03:07.7]} 7... O-O {[%clk 0:03:01.2]} 8. e4 {[%clk 0:03:08.2]}
8... d6 {[%clk 0:03:02.4]} 9. d4 {[%clk 0:03:08.1]} 9... cxd4 {[%clk 0:03:04.3]}
10. Nxd4 {[%clk 0:03:09.4]} 10... Qc8 {[%clk 0:03:02.4]} 11. Be3 {[%clk
0:02:40.6]} 11... a6 {[%clk 0:02:38.4]} 12. Rc1 {[%clk 0:02:14.6]} 12... Nbd7
{[%clk 0:02:37.3]} 13. f4 {[%clk 0:01:55.9]} 13... Rd8 {[%clk 0:02:32.2]} 14. b4
{[%clk 0:01:50.7]} 14... Qc7 {[%clk 0:02:17]} 15. f5 {[%clk 0:01:27.2]} 15... e5
{[%clk 0:02:16.2]} 16. Nd5 {[%clk 0:01:24.6]} 16... Bxd5 {[%clk 0:02:12.8]} 17.
cxd5 {[%clk 0:01:22.7]} 17... Qb7 {[%clk 0:02:12.7]} 18. Nc6 {[%clk 0:01:21.6]}
18... Re8 {[%clk 0:02:13.2]} 19. g4 {[%clk 0:01:11.9]} 19... Nb8 {[%clk
0:02:11.5]} 20. g5 {[%clk 0:01:00.1]} 20... Nfd7 {[%clk 0:02:12]} 21. Nxe7+
{[%clk 0:00:31.2]} 21... Rxe7 {[%clk 0:02:12.6]} 22. Re2 {[%clk 0:00:32.8]}
22... Nf8 {[%clk 0:01:58.8]} 23. f6 {[%clk 0:00:22.8]} 23... Rc7 {[%clk
0:01:58.8]} 24. fxg7 {[%clk 0:00:18.9]} 24... Kxg7 {[%clk 0:01:59.3]} 25. Rec2
{[%clk 0:00:13.6]} 25... Rxc2 {[%clk 0:01:59.3]} 26. Rxc2 {[%clk 0:00:15.5]}
26... Nbd7 {[%clk 0:02:00.1]} 27. Qc1 {[%clk 0:00:11.2]} 27... a5 {[%clk
0:01:57.6]} 28. a3 {[%clk 0:00:11.6]} 28... axb4 {[%clk 0:01:58.5]} 29. axb4
{[%clk 0:00:13.3]} 29... Qa6 {[%clk 0:01:57]} 30. h4 {[%clk 0:00:12.8]} 30...
Qa1 {[%clk 0:01:56.4]} 31. h5 {[%clk 0:00:14.2]} 31... Qxc1+ {[%clk 0:01:55.8]}
32. Rxc1 {[%clk 0:00:16.1]} 32... Ra4 {[%clk 0:01:54.8]} 33. Bd2 {[%clk
0:00:13.8]} 33... f6 {[%clk 0:01:49.7]} 34. Bh3 {[%clk 0:00:09.2]} 34... fxg5
{[%clk 0:01:42.6]} 35. Bxd7 {[%clk 0:00:10.2]} 35... Nxd7 {[%clk 0:01:42.4]} 36.
Rc7 {[%clk 0:00:11.8]} 36... Ra1+ {[%clk 0:01:43.3]} 37. Kf2 {[%clk 0:00:12.9]}
37... Ra2 {[%clk 0:01:44.5]} 38. Rxd7+ {[%clk 0:00:14]} 38... Kh6 {[%clk
0:01:43.8]} 39. Ke1 {[%clk 0:00:15.1]} 39... Kxh5 {[%clk 0:01:45.2]} 40. Rxh7+
{[%clk 0:00:16.3]} 40... Kg4 {[%clk 0:01:46.4]} 41. Rg7 {[%clk 0:00:17.3]} 41...
Kf3 {[%clk 0:01:47.7]} 42. Kd1 {[%clk 0:00:13.1]} 42... g4 {[%clk 0:01:45.2]}
43. Be1 {[%clk 0:00:09.2]} 43... Ra1+ {[%clk 0:01:42.4]} 44. Kd2 {[%clk
0:00:10.4]} 44... Rb1 {[%clk 0:01:42.5]} 45. Rg6 {[%clk 0:00:06.5]} 45... Rxb4
{[%clk 0:01:42.5]} 46. Rxd6 {[%clk 0:00:07.7]} 46... Kxe4 {[%clk 0:01:42.7]} 47.
Rg6 {[%clk 0:00:08.5]} 47... Rb2+ {[%clk 0:01:42.2]} 48. Kc3 {[%clk 0:00:08.3]}
48... Rb1 {[%clk 0:01:42.7]} 49. Bg3 {[%clk 0:00:08.2]} 49... Kxd5 {[%clk
0:01:42.3]} 50. Rxg4 {[%clk 0:00:09.4]} 50... Ra1 {[%clk 0:01:35.9]} 51. Rg5
{[%clk 0:00:09.9]} 51... Ra3+ {[%clk 0:01:36.9]} 52. Kb4 {[%clk 0:00:10.4]}
52... Re3 {[%clk 0:01:37.7]} 53. Rxe5+ {[%clk 0:00:06.5]} 53... Rxe5 {[%clk
0:01:38.5]} 54. Bxe5 {[%clk 0:00:08.4]} 54... Kxe5 {[%clk 0:01:39.8]} 55. Kb5
{[%clk 0:00:10.3]} 55... Kd5 {[%clk 0:01:40.7]} 56. Kxb6 {[%clk 0:00:12.2]}
1/2-1/2

[Event "*** Titled Tuesday Blitz AM"]
[Site "Chess.com"]
[Date "2020.01.07"]
[Round "7"]
[White "Firouzja2003"]
[Black "TigrVShlyape"]
[Result "0-1"]
[WhiteElo "3065"]
[BlackElo "2831"]
[TimeControl "180+2"]
[EndTime "10:34:16 PST"]
[Termination "TigrVShlyape won on time"]

1. d4 {[%clk 0:03:01.9]} 1... Nf6 {[%clk 0:03:00.4]} 2. Nf3 {[%clk 0:03:03]}
2... g6 {[%clk 0:03:01.2]} 3. g3 {[%clk 0:03:04.2]} 3... Bg7 {[%clk 0:03:02.1]}
4. Bg2 {[%clk 0:03:05.9]} 4... O-O {[%clk 0:03:03.4]} 5. O-O {[%clk 0:03:07.8]}
5... d6 {[%clk 0:03:04.1]} 6. c4 {[%clk 0:03:09]} 6... Nc6 {[%clk 0:03:05]} 7.
Nc3 {[%clk 0:03:10.1]} 7... a5 {[%clk 0:03:06.1]} 8. h3 {[%clk 0:03:09]} 8... e5
{[%clk 0:03:05.1]} 9. d5 {[%clk 0:03:05.9]} 9... Nb4 {[%clk 0:03:03.1]} 10. e4
{[%clk 0:03:06.4]} 10... Na6 {[%clk 0:03:03.5]} 11. Ne1 {[%clk 0:03:06.3]} 11...
Nc5 {[%clk 0:03:04]} 12. Rb1 {[%clk 0:03:03.3]} 12... c6 {[%clk 0:02:56.6]} 13.
Be3 {[%clk 0:02:52.9]} 13... cxd5 {[%clk 0:02:55.7]} 14. exd5 {[%clk 0:02:50.7]}
14... Bf5 {[%clk 0:02:53]} 15. Rc1 {[%clk 0:02:51.8]} 15... Rc8 {[%clk
0:02:53.9]} 16. g4 {[%clk 0:02:40.2]} 16... Bd7 {[%clk 0:02:53.9]} 17. b3 {[%clk
0:02:36.5]} 17... h5 {[%clk 0:02:51]} 18. g5 {[%clk 0:02:37.5]} 18... Nh7 {[%clk
0:02:51.8]} 19. Bxc5 {[%clk 0:02:31.6]} 19... dxc5 {[%clk 0:02:47.2]} 20. Ne4
{[%clk 0:02:32.1]} 20... Nxg5 {[%clk 0:02:45.3]} 21. Nxg5 {[%clk 0:02:19.3]}
21... Qxg5 {[%clk 0:02:45.7]} 22. Nf3 {[%clk 0:02:21]} 22... Qf4 {[%clk
0:02:45.3]} 23. Qd2 {[%clk 0:02:21.4]} 23... Qxd2 {[%clk 0:02:42.3]} 24. Nxd2
{[%clk 0:02:23.3]} 24... Bh6 {[%clk 0:02:42.9]} 25. Rcd1 {[%clk 0:02:24.1]}
25... f5 {[%clk 0:02:42.9]} 26. Rfe1 {[%clk 0:02:19.5]} 26... e4 {[%clk
0:02:42.9]} 27. Nf1 {[%clk 0:02:20.5]} 27... Rfe8 {[%clk 0:02:36.7]} 28. Re2
{[%clk 0:02:06.8]} 28... h4 {[%clk 0:02:35.7]} 29. Rde1 {[%clk 0:02:07.3]} 29...
Kf7 {[%clk 0:02:36.1]} 30. f3 {[%clk 0:02:02.1]} 30... exf3 {[%clk 0:02:36.4]}
31. Bxf3 {[%clk 0:02:03.4]} 31... Rxe2 {[%clk 0:02:37.1]} 32. Rxe2 {[%clk
0:02:04.9]} 32... Re8 {[%clk 0:02:37.4]} 33. Rxe8 {[%clk 0:02:04.9]} 33... Kxe8
{[%clk 0:02:38.6]} 34. a4 {[%clk 0:02:04.4]} 34... b6 {[%clk 0:02:38.5]} 35. Kf2
{[%clk 0:02:04.7]} 35... Ke7 {[%clk 0:02:38.9]} 36. Ne3 {[%clk 0:02:04.7]} 36...
Bxe3+ {[%clk 0:02:37.2]} 37. Kxe3 {[%clk 0:02:06.1]} 37... Kf6 {[%clk
0:02:38.4]} 38. Kf2 {[%clk 0:02:04.6]} 38... Ke5 {[%clk 0:02:39.3]} 39. Be2
{[%clk 0:02:06]} 39... g5 {[%clk 0:02:40.3]} 40. Bh5 {[%clk 0:02:07.1]} 40... g4
{[%clk 0:02:40.9]} 41. Kg2 {[%clk 0:02:07.7]} 41... g3 {[%clk 0:02:39.8]} 42.
Bg6 {[%clk 0:02:01.5]} 42... f4 {[%clk 0:02:40.5]} 43. Bh7 {[%clk 0:02:01.5]}
43... Kd4 {[%clk 0:02:39.4]} 44. Bg6 {[%clk 0:02:01.7]} 44... Ke3 {[%clk
0:02:38.6]} 45. Bh5 {[%clk 0:02:01.7]} 45... f3+ {[%clk 0:02:33.6]} 46. Bxf3
{[%clk 0:02:02.9]} 46... Bxh3+ {[%clk 0:02:34.7]} 47. Kxh3 {[%clk 0:02:04.4]}
47... Kxf3 {[%clk 0:02:36.1]} 48. Kxh4 {[%clk 0:01:11.4]} 48... g2 {[%clk
0:01:40.6]} 49. Kg5 {[%clk 0:01:06.7]} 49... g1=Q+ {[%clk 0:01:41]} 50. Kf6
{[%clk 0:01:08.6]} 50... Ke4 {[%clk 0:01:39.7]} 51. d6 {[%clk 0:00:02.5]} 51...
Qd4+ {[%clk 0:01:27.8]} 0-1

[Event "*** Titled Tuesday Blitz AM"]
[Site "Chess.com"]
[Date "2020.01.07"]
[Round "7"]
[White "Alexander_Donchenko"]
[Black "vinniethepooh"]
[Result "1-0"]
[WhiteElo "2734"]
[BlackElo "2602"]
[TimeControl "180+2"]
[EndTime "10:34:17 PST"]
[Termination "Alexander_Donchenko won by resignation"]

1. e4 {[%clk 0:03:01.9]} 1... c5 {[%clk 0:03:00.5]} 2. Nf3 {[%clk 0:03:03]} 2...
Nc6 {[%clk 0:03:01.6]} 3. Bb5 {[%clk 0:02:57.7]} 3... e6 {[%clk 0:03:02.6]} 4.
O-O {[%clk 0:02:57.7]} 4... Nge7 {[%clk 0:03:03.6]} 5. Re1 {[%clk 0:02:58.8]}
5... Nd4 {[%clk 0:03:01.6]} 6. Nxd4 {[%clk 0:02:57.6]} 6... cxd4 {[%clk
0:03:03.5]} 7. c3 {[%clk 0:02:59]} 7... a6 {[%clk 0:03:00.7]} 8. Bf1 {[%clk
0:02:57.9]} 8... Nc6 {[%clk 0:03:00.3]} 9. d3 {[%clk 0:02:51.8]} 9... Bc5 {[%clk
0:02:58.1]} 10. Nd2 {[%clk 0:02:49.4]} 10... O-O {[%clk 0:02:58.7]} 11. Nf3
{[%clk 0:02:39.4]} 11... b5 {[%clk 0:02:46.9]} 12. a4 {[%clk 0:02:36.6]} 12...
Bb7 {[%clk 0:02:46.7]} 13. Qb3 {[%clk 0:02:06.1]} 13... Qb6 {[%clk 0:02:46]} 14.
cxd4 {[%clk 0:01:56.1]} 14... Nxd4 {[%clk 0:02:46.6]} 15. Nxd4 {[%clk
0:01:57.3]} 15... Bxd4 {[%clk 0:02:48.5]} 16. Be3 {[%clk 0:01:58.7]} 16... Bxe3
{[%clk 0:02:46.2]} 17. Rxe3 {[%clk 0:02:00.6]} 17... Rfc8 {[%clk 0:02:42.3]} 18.
axb5 {[%clk 0:01:53.1]} 18... axb5 {[%clk 0:02:44.2]} 19. Rxa8 {[%clk
0:01:53.2]} 19... Rxa8 {[%clk 0:02:39.9]} 20. Re1 {[%clk 0:01:53.2]} 20... d5
{[%clk 0:02:34.6]} 21. Rc1 {[%clk 0:01:37.6]} 21... h6 {[%clk 0:02:18.1]} 22.
Qb4 {[%clk 0:01:34.6]} 22... Rc8 {[%clk 0:01:54.1]} 23. Rxc8+ {[%clk 0:01:34.3]}
23... Bxc8 {[%clk 0:01:56]} 24. exd5 {[%clk 0:01:31.1]} 24... exd5 {[%clk
0:01:57.9]} 25. d4 {[%clk 0:01:32]} 25... Bd7 {[%clk 0:01:53.4]} 26. g3 {[%clk
0:01:24.1]} 26... Qc6 {[%clk 0:01:53.7]} 27. Qc5 {[%clk 0:00:50.3]} 27... Qxc5
{[%clk 0:01:35.9]} 28. dxc5 {[%clk 0:00:52.2]} 28... f6 {[%clk 0:01:37.4]} 29.
f4 {[%clk 0:00:45.2]} 29... Kf7 {[%clk 0:01:37.8]} 30. Kf2 {[%clk 0:00:46]}
30... d4 {[%clk 0:01:29.2]} 31. Ke2 {[%clk 0:00:41.7]} 31... b4 {[%clk
0:01:06.5]} 32. Kd2 {[%clk 0:00:22.7]} 32... Bf5 {[%clk 0:00:36.4]} 33. Bd3
{[%clk 0:00:21.4]} 33... Be6 {[%clk 0:00:37.1]} 34. Ba6 {[%clk 0:00:19]} 34...
Bf5 {[%clk 0:00:35.3]} 35. c6 {[%clk 0:00:19.9]} 35... Ke7 {[%clk 0:00:29.3]}
36. c7 {[%clk 0:00:21.1]} 36... Kd6 {[%clk 0:00:28]} 37. c8=Q {[%clk 0:00:22.5]}
37... Bxc8 {[%clk 0:00:29.3]} 38. Bxc8 {[%clk 0:00:24.2]} 38... Kd5 {[%clk
0:00:30.4]} 39. Kd3 {[%clk 0:00:25.5]} 39... Kc5 {[%clk 0:00:31.5]} 40. Be6
{[%clk 0:00:26.3]} 40... g6 {[%clk 0:00:32.2]} 41. Bf7 {[%clk 0:00:27.1]} 41...
g5 {[%clk 0:00:28.8]} 42. b3 {[%clk 0:00:27.6]} 42... gxf4 {[%clk 0:00:28.2]}
43. gxf4 {[%clk 0:00:28.8]} 43... f5 {[%clk 0:00:29.7]} 44. Be6 {[%clk
0:00:29.3]} 1-0